[Event "Titled Tuesday Blitz April 25 Late 2023"]
[White "Lima, Kleyton Alcantara"]
[Black "Cheparinov, Ivan"]
[WhiteFideId "22718397"]
[BlackFideId "2905540"]
[WhiteElo "2009"]
[BlackElo "2613"]
[Result "0-1"]
[Round "02"]
[TimeControl "180+2"]
[Date "2023.04.25"]
[WhiteClock "0:00:51"]
[BlackClock "0:01:09"]

1. e4 {[%clk 0:03:00]}  c5 {[%clk 0:02:58]} 2. Nf3 {[%clk 0:03:00]}  e6 {[%clk 0:02:58]} 3. d4 {[%clk 0:03:01]}  cxd4 {[%clk 0:02:58]} 4. Nxd4 {[%clk 0:03:02]}  Nf6 {[%clk 0:02:59]} 5. Nc3 {[%clk 0:03:02]}  Nc6 {[%clk 0:02:59]} 6. Ndb5 {[%clk 0:03:00]}  Bb4 {[%clk 0:02:56]} 7. a3 {[%clk 0:02:59]}  Bxc3+ {[%clk 0:02:56]} 8. Nxc3 {[%clk 0:03:00]}  d5 {[%clk 0:02:55]} 9. exd5 {[%clk 0:03:01]}  exd5 {[%clk 0:02:55]} 10. Bd3 {[%clk 0:02:56]}  O-O {[%clk 0:02:55]} 11. O-O {[%clk 0:02:50]}  Bg4 {[%clk 0:02:56]} 12. f3 {[%clk 0:02:40]}  d4 {[%clk 0:02:49]} 13. fxg4 {[%clk 0:02:27]}  dxc3 {[%clk 0:02:47]} 14. bxc3 {[%clk 0:02:28]}  Ne5 {[%clk 0:02:42]} 15. g5 {[%clk 0:02:23]}  Qb6+ {[%clk 0:02:34]} 16. Kh1 {[%clk 0:02:21]}  Nfg4 {[%clk 0:02:34]} 17. Qe2 {[%clk 0:02:11]}  Rae8 {[%clk 0:01:51]} 18. Bf4 {[%clk 0:01:42]}  Nxd3 {[%clk 0:01:47]} 19. Qxd3 {[%clk 0:01:42]}  Nf2+ {[%clk 0:01:46]} 20. Rxf2 {[%clk 0:01:42]}  Qxf2 {[%clk 0:01:47]} 21. Bg3 {[%clk 0:01:34]}  Qe2 {[%clk 0:01:46]} 22. Qf5 {[%clk 0:01:30]}  Re6 {[%clk 0:01:40]} 23. h3 {[%clk 0:01:26]}  Qe4 {[%clk 0:01:40]} 24. Qf2 {[%clk 0:01:24]}  f5 {[%clk 0:01:34]} 25. Qxa7 {[%clk 0:01:18]}  f4 {[%clk 0:01:33]} 26. Bf2 {[%clk 0:01:15]}  f3 {[%clk 0:01:30]} 27. g3 {[%clk 0:01:10]}  Qxc2 {[%clk 0:01:31]} 28. Rf1 {[%clk 0:01:03]}  Qxc3 {[%clk 0:01:27]} 29. Qxb7 {[%clk 0:00:58]}  Qxa3 {[%clk 0:01:19]} 30. Qd5 {[%clk 0:00:57]}  Qa6 {[%clk 0:01:13]} 31. Re1 {[%clk 0:00:53]}  Re8 {[%clk 0:01:14]} 32. Rxe6 {[%clk 0:00:51]}  Qf1+ {[%clk 0:01:09]} 0-1


[Site "https://www.chess.com"]

[Event "Titled Tuesday Blitz April 25 Late 2023"]
[White "Urbina Perez, Juan Antonio"]
[Black "Lamaze, Simon"]
[WhiteFideId "2217368"]
[BlackFideId "36069264"]
[WhiteElo "2197"]
[BlackElo "2272"]
[Result "0-1"]
[Round "02"]
[TimeControl "180+2"]
[Date "2023.04.25"]
[WhiteClock "0:01:00"]
[BlackClock "0:02:00"]

1. e4 {[%clk 0:03:00]}  c5 {[%clk 0:02:59]} 2. Nf3 {[%clk 0:03:00]}  d6 {[%clk 0:02:58]} 3. d4 {[%clk 0:03:00]}  cxd4 {[%clk 0:02:59]} 4. Nxd4 {[%clk 0:03:00]}  Nf6 {[%clk 0:03:00]} 5. Nc3 {[%clk 0:03:01]}  a6 {[%clk 0:03:01]} 6. Bg5 {[%clk 0:03:01]}  e6 {[%clk 0:03:01]} 7. f4 {[%clk 0:03:01]}  Be7 {[%clk 0:03:02]} 8. Qf3 {[%clk 0:03:01]}  h6 {[%clk 0:03:02]} 9. Bh4 {[%clk 0:02:59]}  g5 {[%clk 0:03:03]} 10. fxg5 {[%clk 0:02:56]}  Nfd7 {[%clk 0:03:03]} 11. O-O-O {[%clk 0:02:52]}  Ne5 {[%clk 0:02:58]} 12. Qh5 {[%clk 0:02:47]}  Bxg5+ {[%clk 0:02:58]} 13. Bxg5 {[%clk 0:02:47]}  Qxg5+ {[%clk 0:02:59]} 14. Qxg5 {[%clk 0:02:47]}  hxg5 {[%clk 0:03:00]} 15. Be2 {[%clk 0:02:46]}  Ke7 {[%clk 0:02:59]} 16. Nf3 {[%clk 0:02:45]}  Nxf3 {[%clk 0:02:58]} 17. Bxf3 {[%clk 0:02:45]}  Nc6 {[%clk 0:02:58]} 18. h3 {[%clk 0:02:45]}  Ne5 {[%clk 0:02:59]} 19. Be2 {[%clk 0:02:46]}  Bd7 {[%clk 0:02:59]} 20. Rdf1 {[%clk 0:02:42]}  Bc6 {[%clk 0:02:58]} 21. Bd3 {[%clk 0:02:41]}  Rh4 {[%clk 0:02:58]} 22. Re1 {[%clk 0:02:39]}  Rah8 {[%clk 0:02:58]} 23. Nd1 {[%clk 0:02:38]}  g4 {[%clk 0:02:58]} 24. Nf2 {[%clk 0:02:36]}  g3 {[%clk 0:02:58]} 25. Nd1 {[%clk 0:02:35]}  Rf4 {[%clk 0:02:56]} 26. Rhf1 {[%clk 0:02:35]}  Ng6 {[%clk 0:02:50]} 27. Ne3 {[%clk 0:02:28]}  Rxf1 {[%clk 0:02:48]} 28. Rxf1 {[%clk 0:02:27]}  Nh4 {[%clk 0:02:48]} 29. Rf4 {[%clk 0:02:25]}  Rh5 {[%clk 0:02:38]} 30. Rg4 {[%clk 0:02:19]}  b5 {[%clk 0:02:33]} 31. Rxg3 {[%clk 0:02:15]}  Ng6 {[%clk 0:02:34]} 32. Rf3 {[%clk 0:02:11]}  Ne5 {[%clk 0:02:34]} 33. Rf2 {[%clk 0:02:11]}  Rh4 {[%clk 0:02:34]} 34. a4 {[%clk 0:02:00]}  Bxe4 {[%clk 0:02:31]} 35. Bxe4 {[%clk 0:01:57]}  Rxe4 {[%clk 0:02:32]} 36. Kd2 {[%clk 0:01:50]}  Rxa4 {[%clk 0:02:31]} 37. Nd1 {[%clk 0:01:47]}  Rd4+ {[%clk 0:02:19]} 38. Kc1 {[%clk 0:01:46]}  a5 {[%clk 0:02:15]} 39. c3 {[%clk 0:01:46]}  Re4 {[%clk 0:02:15]} 40. Rd2 {[%clk 0:01:42]}  d5 {[%clk 0:02:14]} 41. Nf2 {[%clk 0:01:42]}  Re1+ {[%clk 0:02:14]} 42. Kc2 {[%clk 0:01:42]}  a4 {[%clk 0:02:13]} 43. Rd1 {[%clk 0:01:37]}  Re2+ {[%clk 0:02:12]} 44. Rd2 {[%clk 0:01:37]}  Rxd2+ {[%clk 0:02:13]} 45. Kxd2 {[%clk 0:01:38]}  Nc4+ {[%clk 0:02:14]} 46. Kc1 {[%clk 0:01:37]}  e5 {[%clk 0:02:13]} 47. g4 {[%clk 0:01:35]}  Kf6 {[%clk 0:02:12]} 48. Nd3 {[%clk 0:01:34]}  Kg5 {[%clk 0:02:12]} 49. Kc2 {[%clk 0:01:27]}  Kh4 {[%clk 0:02:12]} 50. b3 {[%clk 0:01:28]}  axb3+ {[%clk 0:02:12]} 51. Kxb3 {[%clk 0:01:29]}  Kxh3 {[%clk 0:02:12]} 52. g5 {[%clk 0:01:29]}  Kg4 {[%clk 0:02:12]} 53. Nb4 {[%clk 0:01:29]}  e4 {[%clk 0:02:11]} 54. Nxd5 {[%clk 0:01:28]}  Kxg5 {[%clk 0:02:12]} 55. Kc2 {[%clk 0:01:22]}  f5 {[%clk 0:02:09]} 56. Nc7 {[%clk 0:01:21]}  Nd6 {[%clk 0:02:09]} 57. Kd2 {[%clk 0:01:19]}  f4 {[%clk 0:02:10]} 58. Ne6+ {[%clk 0:01:15]}  Kg4 {[%clk 0:02:10]} 59. Nc5 {[%clk 0:01:16]}  Kf3 {[%clk 0:02:08]} 60. Ke1 {[%clk 0:01:13]}  e3 {[%clk 0:02:08]} 61. Kf1 {[%clk 0:01:08]}  Ne4 {[%clk 0:02:04]} 62. Nd3 {[%clk 0:01:05]}  Nxc3 {[%clk 0:02:04]} 63. Ke1 {[%clk 0:01:05]}  Ke4 {[%clk 0:02:04]} 64. Nc1 {[%clk 0:01:03]}  f3 {[%clk 0:02:03]} 65. Ne2 {[%clk 0:01:03]}  Nxe2 {[%clk 0:01:57]} 66. Kf1 {[%clk 0:01:02]}  b4 {[%clk 0:01:58]} 67. Ke1 {[%clk 0:01:02]}  b3 {[%clk 0:01:59]} 68. Kd1 {[%clk 0:01:00]}  b2 {[%clk 0:02:00]} 69. Kc2 {[%clk 0:01:00]}  f2 {[%clk 0:02:00]} 0-1


[Site "https://www.chess.com"]

[Event "Titled Tuesday Blitz April 25 Late 2023"]
[White "Aldokhin, Ivan"]
[Black "Harriott, Tyrell"]
[WhiteFideId "24115720"]
[BlackFideId "2086484"]
[WhiteElo "2322"]
[BlackElo "2107"]
[Result "1-0"]
[Round "02"]
[TimeControl "180+2"]
[Date "2023.04.25"]
[WhiteClock "0:00:09"]
[BlackClock "0:00:08"]

1. e4 {[%clk 0:02:56]}  e6 {[%clk 0:02:51]} 2. d4 {[%clk 0:02:55]}  d5 {[%clk 0:02:52]} 3. Nc3 {[%clk 0:02:56]}  f5 {[%clk 0:02:51]} 4. exf5 {[%clk 0:02:56]}  exf5 {[%clk 0:02:51]} 5. Bf4 {[%clk 0:02:50]}  Nf6 {[%clk 0:02:49]} 6. f3 {[%clk 0:02:49]}  Be7 {[%clk 0:02:45]} 7. Qd2 {[%clk 0:02:49]}  O-O {[%clk 0:02:45]} 8. O-O-O {[%clk 0:02:50]}  Nh5 {[%clk 0:02:43]} 9. Be5 {[%clk 0:02:45]}  Nc6 {[%clk 0:02:42]} 10. f4 {[%clk 0:02:45]}  Nxe5 {[%clk 0:02:41]} 11. dxe5 {[%clk 0:02:44]}  Nxf4 {[%clk 0:02:41]} 12. Nf3 {[%clk 0:02:37]}  Ng6 {[%clk 0:02:01]} 13. Nxd5 {[%clk 0:02:36]}  c6 {[%clk 0:01:55]} 14. Nxe7+ {[%clk 0:02:26]}  Qxe7 {[%clk 0:01:56]} 15. Re1 {[%clk 0:02:05]}  Be6 {[%clk 0:01:54]} 16. h4 {[%clk 0:02:04]}  Bd5 {[%clk 0:01:49]} 17. h5 {[%clk 0:02:01]}  Nh8 {[%clk 0:01:43]} 18. h6 {[%clk 0:02:02]}  g6 {[%clk 0:01:42]} 19. Qf4 {[%clk 0:01:44]}  Bxa2 {[%clk 0:01:30]} 20. Bc4+ {[%clk 0:01:42]}  Bxc4 {[%clk 0:01:29]} 21. Qxc4+ {[%clk 0:01:43]}  Nf7 {[%clk 0:01:26]} 22. Nd4 {[%clk 0:01:34]}  Rae8 {[%clk 0:01:13]} 23. Rhf1 {[%clk 0:01:24]}  Kh8 {[%clk 0:01:11]} 24. Nf3 {[%clk 0:01:09]}  Nxh6 {[%clk 0:01:07]} 25. Rh1 {[%clk 0:01:09]}  Ng4 {[%clk 0:01:06]} 26. e6 {[%clk 0:01:03]}  Qf6 {[%clk 0:01:01]} 27. Qf4 {[%clk 0:00:57]}  Rxe6 {[%clk 0:00:52]} 28. Rxh7+ {[%clk 0:00:56]}  Kg8 {[%clk 0:00:45]} 29. Rxe6 {[%clk 0:00:56]}  Qxe6 {[%clk 0:00:44]} 30. Rxb7 {[%clk 0:00:47]}  Qa2 {[%clk 0:00:27]} 31. Qc7 {[%clk 0:00:34]}  Rf7 {[%clk 0:00:20]} 32. Qd8+ {[%clk 0:00:28]}  Kg7 {[%clk 0:00:19]} 33. Qd4+ {[%clk 0:00:26]}  Kg8 {[%clk 0:00:18]} 34. Rb8+ {[%clk 0:00:22]}  Rf8 {[%clk 0:00:18]} 35. Rxf8+ {[%clk 0:00:16]}  Kxf8 {[%clk 0:00:19]} 36. Ng5 {[%clk 0:00:14]}  Qa1+ {[%clk 0:00:17]} 37. Kd2 {[%clk 0:00:14]}  Qa2 {[%clk 0:00:18]} 38. Qd6+ {[%clk 0:00:08]}  Ke8 {[%clk 0:00:17]} 39. Qxg6+ {[%clk 0:00:06]}  Kd7 {[%clk 0:00:15]} 40. Qxf5+ {[%clk 0:00:06]}  Kc7 {[%clk 0:00:16]} 41. Qxg4 {[%clk 0:00:06]}  Qd5+ {[%clk 0:00:16]} 42. Kc1 {[%clk 0:00:04]}  Qa2 {[%clk 0:00:15]} 43. Qf4+ {[%clk 0:00:04]}  Kb7 {[%clk 0:00:15]} 44. Qd4 {[%clk 0:00:05]}  Qa1+ {[%clk 0:00:14]} 45. Kd2 {[%clk 0:00:04]}  Qf1 {[%clk 0:00:14]} 46. Nf3 {[%clk 0:00:03]}  Qxg2+ {[%clk 0:00:12]} 47. Ke3 {[%clk 0:00:04]}  Qxc2 {[%clk 0:00:11]} 48. Qb4+ {[%clk 0:00:04]}  Kc8 {[%clk 0:00:10]} 49. Qf8+ {[%clk 0:00:04]}  Kb7 {[%clk 0:00:10]} 50. Qg7+ {[%clk 0:00:04]}  Ka6 {[%clk 0:00:09]} 51. Qc3 {[%clk 0:00:05]}  Qg6 {[%clk 0:00:08]} 52. Ne5 {[%clk 0:00:05]}  Qh6+ {[%clk 0:00:09]} 53. Kd3 {[%clk 0:00:05]}  Qh3+ {[%clk 0:00:09]} 54. Kc4 {[%clk 0:00:05]}  Qf1+ {[%clk 0:00:08]} 55. Kb3 {[%clk 0:00:04]}  Qd1+ {[%clk 0:00:08]} 56. Ka2 {[%clk 0:00:03]}  Qd5+ {[%clk 0:00:07]} 57. Ka1 {[%clk 0:00:03]}  Kb7 {[%clk 0:00:06]} 58. Nc4 {[%clk 0:00:03]}  Qd1+ {[%clk 0:00:06]} 59. Ka2 {[%clk 0:00:03]}  Qa4+ {[%clk 0:00:07]} 60. Na3 {[%clk 0:00:03]}  Qd1 {[%clk 0:00:06]} 61. Qb3+ {[%clk 0:00:03]}  Qxb3+ {[%clk 0:00:05]} 62. Kxb3 {[%clk 0:00:04]}  Kb6 {[%clk 0:00:05]} 63. Ka4 {[%clk 0:00:05]}  Kc5 {[%clk 0:00:05]} 64. Nc2 {[%clk 0:00:03]}  Kc4 {[%clk 0:00:06]} 65. Ne3+ {[%clk 0:00:02]}  Kd3 {[%clk 0:00:05]} 66. Nf5 {[%clk 0:00:02]}  Kc2 {[%clk 0:00:06]} 67. b4 {[%clk 0:00:02]}  Kc3 {[%clk 0:00:06]} 68. Ne7 {[%clk 0:00:03]}  Kc4 {[%clk 0:00:03]} 69. Nxc6 {[%clk 0:00:03]}  Kd5 {[%clk 0:00:04]} 70. Nxa7 {[%clk 0:00:03]}  Kd6 {[%clk 0:00:05]} 71. Nb5+ {[%clk 0:00:03]}  Kc6 {[%clk 0:00:05]} 72. Nc3 {[%clk 0:00:04]}  Kb7 {[%clk 0:00:05]} 73. b5 {[%clk 0:00:05]}  Kb6 {[%clk 0:00:05]} 74. Kb4 {[%clk 0:00:06]}  Kb7 {[%clk 0:00:06]} 75. Nd5 {[%clk 0:00:07]}  Ka7 {[%clk 0:00:06]} 76. Kc5 {[%clk 0:00:08]}  Kb7 {[%clk 0:00:07]} 77. b6 {[%clk 0:00:08]}  Kb8 {[%clk 0:00:07]} 78. Kc6 {[%clk 0:00:08]}  Kc8 {[%clk 0:00:08]} 79. b7+ {[%clk 0:00:08]}  Kb8 {[%clk 0:00:09]} 80. Nc3 {[%clk 0:00:07]}  Ka7 {[%clk 0:00:10]} 81. Kc7 {[%clk 0:00:07]}  Ka6 {[%clk 0:00:09]} 82. b8=Q {[%clk 0:00:08]}  Ka5 {[%clk 0:00:08]} 83. Qb5# {[%clk 0:00:09]} 1-0


[Site "https://www.chess.com"]

[Event "Titled Tuesday Blitz April 25 Late 2023"]
[White "Prohaszka, Peter"]
[Black "Dzida, Kamil"]
[WhiteFideId "726265"]
[BlackFideId "21828652"]
[WhiteElo "2626"]
[BlackElo "2139"]
[Result "1-0"]
[Round "02"]
[TimeControl "180+2"]
[Date "2023.04.25"]
[WhiteClock "0:00:09"]
[BlackClock "0:00:01"]

1. d4 {[%clk 0:03:00]}  Nf6 {[%clk 0:02:59]} 2. c3 {[%clk 0:03:01]}  e6 {[%clk 0:02:59]} 3. Nf3 {[%clk 0:03:01]}  b6 {[%clk 0:02:59]} 4. Bg5 {[%clk 0:03:00]}  Bb7 {[%clk 0:02:59]} 5. Nbd2 {[%clk 0:03:01]}  d5 {[%clk 0:02:57]} 6. e3 {[%clk 0:02:58]}  Be7 {[%clk 0:02:55]} 7. Bd3 {[%clk 0:02:57]}  Nbd7 {[%clk 0:02:54]} 8. Qb1 {[%clk 0:02:57]}  h6 {[%clk 0:02:53]} 9. Bh4 {[%clk 0:02:56]}  Bd6 {[%clk 0:02:50]} 10. a4 {[%clk 0:02:55]}  a5 {[%clk 0:02:42]} 11. e4 {[%clk 0:02:55]}  dxe4 {[%clk 0:02:42]} 12. Nxe4 {[%clk 0:02:55]}  Be7 {[%clk 0:02:42]} 13. O-O {[%clk 0:02:42]}  O-O {[%clk 0:02:37]} 14. Re1 {[%clk 0:02:40]}  Nxe4 {[%clk 0:02:33]} 15. Bxe7 {[%clk 0:02:36]}  Nxc3 {[%clk 0:02:16]} 16. Bxd8 {[%clk 0:02:23]}  Nxb1 {[%clk 0:02:15]} 17. Bxc7 {[%clk 0:02:10]}  Bxf3 {[%clk 0:02:07]} 18. Raxb1 {[%clk 0:02:10]}  Bd5 {[%clk 0:02:06]} 19. Rbc1 {[%clk 0:02:08]}  Rfc8 {[%clk 0:01:55]} 20. Bb5 {[%clk 0:02:04]}  Ra7 {[%clk 0:01:48]} 21. Bd6 {[%clk 0:01:53]}  Rxc1 {[%clk 0:01:33]} 22. Rxc1 {[%clk 0:01:54]}  Nf6 {[%clk 0:01:19]} 23. Rc8+ {[%clk 0:01:53]}  Kh7 {[%clk 0:01:18]} 24. f3 {[%clk 0:01:54]}  Nh5 {[%clk 0:00:30]} 25. g4 {[%clk 0:01:39]}  Nf6 {[%clk 0:00:17]} 26. Bd3+ {[%clk 0:01:39]}  g6 {[%clk 0:00:17]} 27. Be5 {[%clk 0:01:39]}  Ng8 {[%clk 0:00:16]} 28. Kf2 {[%clk 0:01:26]}  f6 {[%clk 0:00:15]} 29. Bd6 {[%clk 0:01:13]}  Rd7 {[%clk 0:00:13]} 30. Ba3 {[%clk 0:00:50]}  Ne7 {[%clk 0:00:13]} 31. Re8 {[%clk 0:00:31]}  Nc6 {[%clk 0:00:14]} 32. h4 {[%clk 0:00:26]}  Nb4 {[%clk 0:00:14]} 33. Bxb4 {[%clk 0:00:17]}  axb4 {[%clk 0:00:14]} 34. h5 {[%clk 0:00:18]}  f5 {[%clk 0:00:14]} 35. hxg6+ {[%clk 0:00:17]}  Kxg6 {[%clk 0:00:14]} 36. gxf5+ {[%clk 0:00:17]}  exf5 {[%clk 0:00:13]} 37. Re5 {[%clk 0:00:18]}  Rd8 {[%clk 0:00:11]} 38. Bxf5+ {[%clk 0:00:17]}  Kg7 {[%clk 0:00:11]} 39. Ke3 {[%clk 0:00:17]}  Bb3 {[%clk 0:00:10]} 40. Be4 {[%clk 0:00:17]}  Bxa4 {[%clk 0:00:09]} 41. Re6 {[%clk 0:00:14]}  Re8 {[%clk 0:00:06]} 42. Rg6+ {[%clk 0:00:14]}  Kf7 {[%clk 0:00:06]} 43. Rxb6 {[%clk 0:00:13]}  Bc2 {[%clk 0:00:06]} 44. Rxh6 {[%clk 0:00:13]}  b3 {[%clk 0:00:03]} 45. Rb6 {[%clk 0:00:12]}  Rc8 {[%clk 0:00:03]} 46. d5 {[%clk 0:00:10]}  Ke7 {[%clk 0:00:02]} 47. Kd4 {[%clk 0:00:11]}  Kd7 {[%clk 0:00:01]} 48. Rb7+ {[%clk 0:00:09]}  Kd8 {[%clk 0:00:01]} 49. Rb6 {[%clk 0:00:09]}  Kd7 {[%clk 0:00:01]} 50. Rc6 {[%clk 0:00:09]} 1-0


[Site "https://www.chess.com"]

[Event "Titled Tuesday Blitz April 25 Late 2023"]
[White "Alexikov, Alexander"]
[Black "Filgueira, Hernan"]
[WhiteFideId "14103958"]
[BlackFideId "101770"]
[WhiteElo "2186"]
[BlackElo "2363"]
[Result "1/2-1/2"]
[Round "02"]
[TimeControl "180+2"]
[Date "2023.04.25"]
[WhiteClock "0:00:45"]
[BlackClock "0:01:03"]

1. e4 {[%clk 0:02:54]}  c5 {[%clk 0:02:59]} 2. Nf3 {[%clk 0:02:54]}  e6 {[%clk 0:02:59]} 3. Nc3 {[%clk 0:02:52]}  a6 {[%clk 0:02:59]} 4. d4 {[%clk 0:02:51]}  cxd4 {[%clk 0:02:58]} 5. Nxd4 {[%clk 0:02:51]}  Qc7 {[%clk 0:02:59]} 6. Bd3 {[%clk 0:02:50]}  Nf6 {[%clk 0:02:58]} 7. Qe2 {[%clk 0:02:50]}  Bd6 {[%clk 0:02:56]} 8. g3 {[%clk 0:02:41]}  Be5 {[%clk 0:02:56]} 9. Be3 {[%clk 0:02:37]}  Nc6 {[%clk 0:02:50]} 10. Nxc6 {[%clk 0:02:34]}  Qxc6 {[%clk 0:02:50]} 11. Bd2 {[%clk 0:02:31]}  d6 {[%clk 0:02:49]} 12. a4 {[%clk 0:02:19]}  h5 {[%clk 0:02:47]} 13. h3 {[%clk 0:02:15]}  Bd7 {[%clk 0:02:43]} 14. O-O {[%clk 0:02:14]}  Bd4 {[%clk 0:02:39]} 15. Kh2 {[%clk 0:02:10]}  e5 {[%clk 0:02:32]} 16. Nd1 {[%clk 0:01:55]}  Qc8 {[%clk 0:02:29]} 17. c3 {[%clk 0:01:46]}  Ba7 {[%clk 0:02:26]} 18. h4 {[%clk 0:01:43]}  Bc6 {[%clk 0:02:15]} 19. f3 {[%clk 0:01:36]}  Qe6 {[%clk 0:02:02]} 20. Ne3 {[%clk 0:01:29]}  Bxe3 {[%clk 0:01:52]} 21. Bxe3 {[%clk 0:01:28]}  Bd7 {[%clk 0:01:50]} 22. Kg1 {[%clk 0:01:22]}  Bc6 {[%clk 0:01:47]} 23. Bc4 {[%clk 0:01:20]}  Qh3 {[%clk 0:01:42]} 24. Qg2 {[%clk 0:01:18]}  Qxg2+ {[%clk 0:01:37]} 25. Kxg2 {[%clk 0:01:17]}  d5 {[%clk 0:01:38]} 26. exd5 {[%clk 0:01:15]}  Nxd5 {[%clk 0:01:37]} 27. Rfe1 {[%clk 0:01:14]}  O-O-O {[%clk 0:01:33]} 28. Bc5 {[%clk 0:01:11]}  f6 {[%clk 0:01:32]} 29. Kf2 {[%clk 0:01:09]}  Rhe8 {[%clk 0:01:28]} 30. a5 {[%clk 0:01:01]}  f5 {[%clk 0:01:18]} 31. Rad1 {[%clk 0:00:59]}  e4 {[%clk 0:01:17]} 32. f4 {[%clk 0:00:54]}  Nf6 {[%clk 0:01:14]} 33. Ke2 {[%clk 0:00:53]}  Bb5 {[%clk 0:01:09]} 34. Bxb5 {[%clk 0:00:51]}  axb5 {[%clk 0:01:09]} 35. Rxd8+ {[%clk 0:00:51]}  Rxd8 {[%clk 0:01:08]} 36. Be7 {[%clk 0:00:50]}  Rd3 {[%clk 0:01:07]} 37. Bxf6 {[%clk 0:00:50]}  gxf6 {[%clk 0:01:08]} 38. Kf2 {[%clk 0:00:47]}  Kc7 {[%clk 0:01:06]} 39. Re3 {[%clk 0:00:47]}  Rd2+ {[%clk 0:01:05]} 40. Re2 {[%clk 0:00:47]}  Rd3 {[%clk 0:01:05]} 41. Re3 {[%clk 0:00:46]}  Rd1 {[%clk 0:01:04]} 42. Re1 {[%clk 0:00:46]}  Rd3 {[%clk 0:01:03]} 43. Re3 {[%clk 0:00:45]} 1/2-1/2


[Site "https://www.chess.com"]

[Event "Titled Tuesday Blitz April 25 Late 2023"]
[White "Hoffmann, Asa"]
[Black "Atanasov, Anthony"]
[WhiteFideId "2001470"]
[BlackFideId "2623897"]
[WhiteElo "2117"]
[BlackElo "2326"]
[Result "0-1"]
[Round "02"]
[TimeControl "180+2"]
[Date "2023.04.25"]
[WhiteClock "0:00:29"]
[BlackClock "0:00:06"]

1. d4 {[%clk 0:03:00]}  Nf6 {[%clk 0:02:58]} 2. Bg5 {[%clk 0:02:57]}  Ne4 {[%clk 0:02:58]} 3. Bf4 {[%clk 0:02:56]}  Nc6 {[%clk 0:02:59]} 4. f3 {[%clk 0:02:56]}  Nf6 {[%clk 0:02:39]} 5. e4 {[%clk 0:02:54]}  d5 {[%clk 0:02:31]} 6. e5 {[%clk 0:02:53]}  Nh5 {[%clk 0:02:31]} 7. Be3 {[%clk 0:02:52]}  e6 {[%clk 0:02:30]} 8. g3 {[%clk 0:02:43]}  f5 {[%clk 0:02:08]} 9. f4 {[%clk 0:02:33]}  g6 {[%clk 0:02:04]} 10. Be2 {[%clk 0:02:33]}  Ng7 {[%clk 0:02:01]} 11. Nf3 {[%clk 0:02:33]}  Be7 {[%clk 0:02:00]} 12. c4 {[%clk 0:02:30]}  dxc4 {[%clk 0:01:57]} 13. Bxc4 {[%clk 0:02:29]}  Na5 {[%clk 0:01:57]} 14. Be2 {[%clk 0:02:25]}  b6 {[%clk 0:01:58]} 15. Nc3 {[%clk 0:02:15]}  Bb7 {[%clk 0:01:58]} 16. Rc1 {[%clk 0:02:11]}  c5 {[%clk 0:01:42]} 17. Bb5+ {[%clk 0:02:06]}  Kf7 {[%clk 0:01:40]} 18. dxc5 {[%clk 0:02:01]}  Qxd1+ {[%clk 0:01:39]} 19. Nxd1 {[%clk 0:01:49]}  Bxf3 {[%clk 0:01:20]} 20. O-O {[%clk 0:01:48]}  Bxd1 {[%clk 0:01:19]} 21. Rfxd1 {[%clk 0:01:48]}  bxc5 {[%clk 0:01:11]} 22. Bxc5 {[%clk 0:01:45]}  Rhd8 {[%clk 0:01:08]} 23. Rxd8 {[%clk 0:01:38]}  Bxd8 {[%clk 0:01:00]} 24. b4 {[%clk 0:01:37]}  Nb7 {[%clk 0:00:53]} 25. Bc6 {[%clk 0:01:37]}  Nxc5 {[%clk 0:00:36]} 26. Bxa8 {[%clk 0:01:36]}  Nd3 {[%clk 0:00:35]} 27. Rc4 {[%clk 0:01:30]}  Bb6+ {[%clk 0:00:35]} 28. Kf1 {[%clk 0:01:30]}  Ke7 {[%clk 0:00:29]} 29. a4 {[%clk 0:01:27]}  Nb2 {[%clk 0:00:29]} 30. Rc2 {[%clk 0:01:16]}  Nd1 {[%clk 0:00:24]} 31. Ke2 {[%clk 0:01:14]}  Ne3 {[%clk 0:00:24]} 32. Rc6 {[%clk 0:01:11]}  Nd5 {[%clk 0:00:17]} 33. b5 {[%clk 0:01:07]}  Ne8 {[%clk 0:00:15]} 34. Rc8 {[%clk 0:01:02]}  Ndc7 {[%clk 0:00:12]} 35. Bc6 {[%clk 0:00:59]}  h6 {[%clk 0:00:09]} 36. h3 {[%clk 0:00:58]}  Ba5 {[%clk 0:00:06]} 37. g4 {[%clk 0:00:58]}  h5 {[%clk 0:00:05]} 38. gxh5 {[%clk 0:00:57]}  gxh5 {[%clk 0:00:06]} 39. Kf3 {[%clk 0:00:57]}  h4 {[%clk 0:00:06]} 40. Ke3 {[%clk 0:00:53]}  Bb6+ {[%clk 0:00:06]} 41. Kd3 {[%clk 0:00:53]}  Ba5 {[%clk 0:00:06]} 42. Kc4 {[%clk 0:00:52]}  Ng7 {[%clk 0:00:02]} 43. Rh8 {[%clk 0:00:45]}  Bb6 {[%clk 0:00:02]} 44. Rxh4 {[%clk 0:00:44]}  Bf2 {[%clk 0:00:02]} 45. Rh7 {[%clk 0:00:44]}  Kf7 {[%clk 0:00:02]} 46. h4 {[%clk 0:00:44]}  Be3 {[%clk 0:00:03]} 47. h5 {[%clk 0:00:42]}  Kg8 {[%clk 0:00:03]} 48. Rh6 {[%clk 0:00:41]}  Bxf4 {[%clk 0:00:03]} 49. Rg6 {[%clk 0:00:40]}  Bxe5 {[%clk 0:00:03]} 50. h6 {[%clk 0:00:40]}  Kf7 {[%clk 0:00:03]} 51. hxg7 {[%clk 0:00:40]}  Bxg7 {[%clk 0:00:02]} 52. Rg2 {[%clk 0:00:39]}  Bf8 {[%clk 0:00:02]} 53. a5 {[%clk 0:00:39]}  Bd6 {[%clk 0:00:02]} 54. b6 {[%clk 0:00:38]}  axb6 {[%clk 0:00:03]} 55. axb6 {[%clk 0:00:38]}  Na6 {[%clk 0:00:04]} 56. Bb5 {[%clk 0:00:37]}  Nb8 {[%clk 0:00:04]} 57. Rd2 {[%clk 0:00:35]}  Ke7 {[%clk 0:00:03]} 58. Rg2 {[%clk 0:00:34]}  Kf6 {[%clk 0:00:03]} 59. Rg8 {[%clk 0:00:33]}  Kf7 {[%clk 0:00:03]} 60. Rc8 {[%clk 0:00:32]}  Ke7 {[%clk 0:00:04]} 61. Rc7+ {[%clk 0:00:31]}  Bxc7 {[%clk 0:00:03]} 62. bxc7 {[%clk 0:00:31]}  Nd7 {[%clk 0:00:03]} 63. Bxd7 {[%clk 0:00:30]}  Kxd7 {[%clk 0:00:04]} 64. Kd4 {[%clk 0:00:29]}  Kxc7 {[%clk 0:00:04]} 65. Ke5 {[%clk 0:00:30]}  Kd7 {[%clk 0:00:05]} 66. Kf4 {[%clk 0:00:29]}  Kd6 {[%clk 0:00:06]} 0-1


[Site "https://www.chess.com"]